bitfinex/quotes_BTCUSD_20240828
["timestamp","ask_amount","ask_price","bid_price","bid_amount"]
[1724827924065,0.4676612,59354.0,59353.0,0.880415]
[1724827926233,0.46283744,59354.0,59353.0,0.880415]
[1724827926488,0.46283744,59354.0,59353.0,1.217381]
[1724827926675,0.4676612,59354.0,59353.0,1.217381]
[1724827926891,0.46283744,59354.0,59353.0,1.217381]
[1724827927040,0.4676612,59354.0,59353.0,1.217381]
[1724827927418,0.4676612,59354.0,59353.0,1.207381]
[1724827927822,0.46283744,59354.0,59353.0,1.218381]
[1724827928228,0.4676612,59354.0,59353.0,1.218381]
[1724827928878,0.4676612,59354.0,59353.0,1.190381]
[1724827929060,0.4676612,59354.0,59353.0,1.204381]
[1724827929276,0.9731112,59354.0,59353.0,1.193381]
[1724827929464,0.96828744,59354.0,59353.0,1.205381]
[1724827929636,0.9731112,59354.0,59353.0,1.205381]
[1724827932680,0.97274801,59354.0,59353.0,1.205381]
[1724827934472,0.97274801,59354.0,59353.0,0.868415]
[1724827934676,0.97274801,59354.0,59353.0,0.194483]
[1724827935284,1.14402518,59354.0,59353.0,0.026]
[1724827935495,1.48098618,59354.0,59353.0,0.014]
[1724827935713,1.81794718,59354.0,59353.0,0.014]
[1724827935939,1.81794718,59354.0,59353.0,0.006]
[1724827936203,1.81794718,59354.0,59328.0,0.05051828]
[1724827936204,0.1971,59337.0,59328.0,0.05051828]
[1724827936411,0.00279717,59339.0,59327.0,0.0008998]
[1724827936412,0.11811234,59330.0,59327.0,0.0008998]
[1724827936871,0.14454036,59330.0,59329.0,0.168551]
[1724827937291,0.14454036,59330.0,59328.0,0.168553]
[1724827937292,0.2315,59329.0,59328.0,0.168553]
[1724827937514,0.23429717,59329.0,59327.0,0.0008998]
[1724827937766,0.73584717,59329.0,59327.0,0.0008998]
[1724827938430,0.73584717,59329.0,59327.0,0.1694548]
[1724827938673,0.73584717,59329.0,59327.0,0.0008998]
[1724827938886,0.73584717,59329.0,59328.0,0.006]
[1724827939104,1.42150117,59329.0,59328.0,0.006]
[1724827939351,1.42150117,59329.0,59327.0,0.0008998]
[1724827939352,0.70045917,59328.0,59327.0,0.0008998]
[1724827939576,1.20610917,59328.0,59327.0,0.0028998]
[1724827939796,1.20610917,59328.0,59327.0,0.0088998]
[1724827940235,1.20610917,59328.0,59327.0,0.0008998]
[1724827940683,1.45580917,59328.0,59327.0,0.0008998]
[1724827941625,1.48224412,59328.0,59327.0,0.0008998]
[1724827942148,1.48524412,59328.0,59327.0,0.0008998]
[1724827942831,1.48224412,59328.0,59327.0,0.0018998]
[1724827943075,1.48524412,59328.0,59327.0,0.0008998]
[1724827943535,1.14813612,59328.0,59327.0,0.0018998]
[1724827943761,1.14513612,59328.0,59327.0,0.0008998]
[1724827943991,1.14513612,59328.0,59327.0,0.0018998]
[1724827945132,0.97658212,59328.0,59327.0,0.0018998]
[1724827945395,0.97958212,59328.0,59327.0,0.0018998]
[1724827945634,1.14813612,59328.0,59327.0,0.0018998]
[1724827945869,0.97678495,59328.0,59327.0,0.6761278]
[1724827946127,0.97678495,59328.0,59327.0,0.5075708]
[1724827946375,0.97958212,59328.0,59327.0,0.0018998]
[1724827946599,0.97958212,59328.0,59327.0,0.1704568]
[1724827946833,0.97658212,59328.0,59327.0,0.1694568]
[1724827947044,0.97378495,59328.0,59327.0,0.1724568]
[1724827947273,0.97478495,59328.0,59327.0,0.1724568]
[1724827947489,0.97478495,59328.0,59327.0,0.5095708]
[1724827948400,0.72408495,59328.0,59327.0,0.5095708]
[1724827948616,0.6977569,59328.0,59327.0,0.5095708]
[1724827948842,0.6977569,59328.0,59327.0,0.1724568]
[1724827949056,0.93205407,59328.0,59327.0,0.0038998]
[1724827949314,1.43771607,59328.0,59327.0,0.0038998]
[1724827949533,1.43771607,59328.0,59327.0,0.0008998]
[1724827949534,1.24437738,59328.0,59327.0,0.0008998]
[1724827949751,1.43771607,59328.0,59327.0,0.0008998]
[1724827949973,1.10060807,59328.0,59327.0,0.0048998]
[1724827950183,1.12704265,59328.0,59327.0,0.0038998]
[1724827950616,1.12704265,59328.0,59327.0,0.0048998]
[1724827951274,1.13160387,59328.0,59327.0,0.0048998]
[1724827951491,1.13160387,59328.0,59327.0,0.0018998]
[1724827951942,1.13460387,59328.0,59327.0,0.0018998]
[1724827952176,1.36073877,59328.0,59327.0,0.0018998]
[1724827952405,0.85507677,59328.0,59327.0,0.1704568]
[1724827953033,0.85507677,59328.0,59327.0,0.5075708]
[1724827953264,0.7712527,59328.0,59327.0,0.8446848]
[1724827953477,0.5397527,59328.0,59327.0,0.8446848]
[1724827953689,0.5397527,59328.0,59327.0,0.5075708]
[1724827954125,0.53519148,59328.0,59327.0,0.5075708]
[1724827954589,0.53974325,59328.0,59327.0,0.5075708]
[1724827959797,0.53974325,59328.0,59327.0,1.1817988]
[1724827960012,0.53974325,59328.0,59327.0,1.4516988]
[1724827960227,0.53974325,59328.0,59327.0,1.6372988]
[1724827960441,0.5087569,59328.0,59327.0,1.6372988]
[1724827960870,0.51016467,59328.0,59327.0,1.6362988]
[1724827961144,0.51016467,59328.0,59327.0,1.6472988]
[1724827961608,0.51016467,59328.0,59327.0,1.6532988]
[1724827962078,0.51016467,59328.0,59327.0,1.3161848]
[1724827962308,0.51016467,59328.0,59327.0,0.8836848]
[1724827963417,0.53659654,59328.0,59327.0,0.8836848]
[1724827963852,0.72669654,59328.0,59327.0,0.8606848]
[1724827967108,0.53659654,59328.0,59327.0,0.8606848]
[1724827968567,0.51016467,59328.0,59327.0,0.8606848]
[1724827969037,0.51016467,59328.0,59327.0,0.5235708]
[1724827969262,0.51296184,59328.0,59327.0,0.5235708]
[1724827969485,0.51296184,59328.0,59327.0,0.1864568]
[1724827970169,0.53939489,59328.0,59327.0,0.1864568]
[1724827970634,1.46575689,59328.0,59327.0,0.0178998]
[1724827970857,1.12864889,59328.0,59327.0,0.0178998]
[1724827971075,0.96009489,59328.0,59327.0,0.0178998]
[1724827971522,1.12864889,59328.0,59327.0,0.0118998]
[1724827972418,1.12864889,59328.0,59327.0,0.0008998]
[1724827972419,0.95729772,59328.0,59327.0,0.0008998]
[1724827972679,0.53659772,59328.0,59327.0,0.5065708]
[1724827972884,0.53659772,59328.0,59327.0,0.5155708]
[1724827973113,0.53659772,59328.0,59327.0,1.6229988]
[1724827973332,0.53659772,59328.0,59327.0,1.6249988]
[1724827973545,0.53218995,59328.0,59327.0,1.6249988]
[1724827973768,0.53218995,59328.0,59327.0,1.6229988]
[1724827974032,0.5365755,59328.0,59327.0,1.6319988]
[1724827974277,0.5365755,59328.0,59327.0,1.6299988]
[1724827974478,0.5365755,59328.0,59327.0,1.6349988]
[1724827974695,0.5373935,59328.0,59327.0,1.6349988]
[1724827977396,0.51096045,59328.0,59327.0,1.6349988]
[1724827978535,0.51096045,59328.0,59327.0,1.63720163]
[1724827980826,0.53739175,59328.0,59327.0,1.63720163]
[1724827981074,0.53739175,59328.0,59327.0,1.6349988]
[1724827981297,0.53739175,59328.0,59327.0,1.2177988]
[1724827983108,0.53739175,59328.0,59327.0,1.4708988]
[1724827983556,0.53739175,59328.0,59327.0,1.6623988]
[1724827983786,0.53739175,59328.0,59327.0,1.66460163]
[1724827984696,0.53739175,59328.0,59327.0,2.00171563]
[1724827986446,0.53739175,59328.0,59327.0,2.02650168]
[1724827988486,0.51096045,59328.0,59327.0,2.02650168]
[1724827995118,0.51096045,59328.0,59327.0,2.65892713]
[1724827995333,0.51096045,59328.0,59327.0,2.75056]
[1724827995555,0.5065749,59328.0,59327.0,3.17492046]
[1724827995764,0.5065749,59328.0,59327.0,3.16092046]
[1724827995988,0.5065749,59328.0,59327.0,2.48324632]
[1724827996203,0.5065749,59328.0,59327.0,2.10913581]
[1724827996426,0.5065749,59328.0,59327.0,2.03333699]
[1724827996669,0.5065749,59328.0,59327.0,2.04233699]
[1724827996670,0.50637203,59328.0,59327.0,2.04233699]
[1724827997099,0.50637203,59328.0,59327.0,2.03333699]
[1724827997309,0.50637203,59328.0,59327.0,2.09285937]
[1724827997747,0.50637203,59328.0,59327.0,2.07885937]
[1724827998383,0.50637203,59328.0,59327.0,2.09285937]
[1724827999292,0.50637203,59328.0,59327.0,2.10685937]
[1724827999807,0.50637203,59328.0,59327.0,2.10685955]
[1724828000237,0.50637203,59328.0,59327.0,2.05633717]
[1724828001113,0.5328013,59328.0,59327.0,2.05633717]
[1724828002902,0.5328013,59328.0,59327.0,2.04050168]
[1724828003121,0.5328013,59328.0,59327.0,2.05633717]
[1724828003968,0.53724852,59328.0,59327.0,2.05633717]
[1724828004187,0.5328013,59328.0,59327.0,2.05633717]
[1724828005671,0.5328013,59328.0,59327.0,2.12391117]
[1724828006299,0.53726737,59328.0,59327.0,2.12391117]
[1724828006960,0.53726737,59328.0,59327.0,2.10807568]
[1724828007428,0.53726737,59328.0,59327.0,2.12391251]
[1724828007884,0.53726737,59328.0,59327.0,2.05633851]
[1724828008330,0.53726737,59328.0,59327.0,2.04050168]
[1724828008541,0.5108381,59328.0,59327.0,2.04050168]
[1724828008998,0.5108381,59328.0,59327.0,2.05633852]
[1724828011240,0.50637203,59328.0,59327.0,2.68876397]
[1724828011686,0.50637203,59328.0,59327.0,2.71410068]
[1724828012141,0.50637203,59328.0,59327.0,2.76460316]
[1724828014454,0.50637203,59328.0,59327.0,2.74876632]
[1724828014664,0.50637203,59328.0,59327.0,2.72342961]
[1724828014871,0.53280095,59328.0,59327.0,2.76460158]
[1724828015085,0.53280095,59328.0,59327.0,2.7140991]
[1724828015512,0.53280095,59328.0,59327.0,3.18920814]
[1724828015934,0.53280095,59328.0,59327.0,3.22087722]
[1724828016154,0.53280095,59328.0,59327.0,3.08820318]
[1724828016792,0.53280095,59328.0,59327.0,3.18920814]
[1724828017423,0.53280095,59328.0,59327.0,3.16396799]
[1724828017639,0.53280095,59328.0,59327.0,3.08820318]
[1724828017844,0.53280095,59328.0,59327.0,3.16398721]
[1724828018079,0.53280095,59328.0,59327.0,2.132199]
[1724828018308,0.53280095,59328.0,59327.0,1.86483705]
[1724828018540,0.53280095,59328.0,59327.0,1.9153624]
[1724828018758,0.53280095,59328.0,59327.0,2.2524764]
[1724828019245,0.53280095,59328.0,59327.0,2.22728828]
[1724828020126,0.53280095,59328.0,59327.0,1.89017428]
[1724828020345,0.53280095,59328.0,59327.0,1.96595831]
[1724828020555,0.53280095,59328.0,59327.0,1.96599643]
[1724828021015,0.53280095,59328.0,59327.0,2.34011543]
[1724828021258,0.53280095,59328.0,59327.0,1.96599643]
[1724828021479,0.50637203,59328.0,59327.0,1.92482383]
[1724828021688,0.50637203,59328.0,59327.0,2.32428084]
[1724828021921,0.50637203,59328.0,59327.0,1.96599654]
[1724828022603,0.50637203,59328.0,59327.0,2.26429597]
[1724828022851,0.50637203,59328.0,59327.0,2.34013695]
[1724828023076,0.50637203,59328.0,59327.0,2.26429597]
[1724828023289,0.50637203,59328.0,59327.0,2.34013755]
[1724828023511,0.50637203,59328.0,59327.0,2.26429597]
[1724828023727,0.50637203,59328.0,59327.0,2.34014712]
[1724828024183,0.50637203,59328.0,59327.0,2.36541728]
[1724828024396,0.53280127,59328.0,59327.0,2.34014784]
[1724828024609,0.53280127,59328.0,59327.0,2.26429883]
[1724828025064,0.53280127,59328.0,59327.0,2.26430376]
[1724828025538,0.53280127,59328.0,59327.0,2.34017586]
[1724828026792,0.53280127,59328.0,59327.0,2.08707586]
[1724828027008,0.53280127,59328.0,59327.0,1.71294679]
[1724828027447,0.69107047,59328.0,59327.0,2.06173992]
[1724828027663,0.69107047,59328.0,59327.0,1.68760944]
[1724828028311,0.69107047,59328.0,59327.0,2.06174075]
[1724828028521,0.53727047,59328.0,59327.0,2.06174075]
[1724828030299,0.53727047,59328.0,59327.0,2.06177427]
[1724828030525,0.53727047,59328.0,59327.0,1.98586865]
[1724828032627,0.53727047,59328.0,59327.0,1.97003299]
[1724828032844,0.53727047,59328.0,59327.0,1.98586921]
[1724828035144,0.53727047,59328.0,59327.0,2.08709843]
[1724828035569,0.53727047,59328.0,59327.0,2.11243617]
[1724828036177,0.53727047,59328.0,59327.0,2.44955017]
[1724828036392,0.53727047,59328.0,59327.0,2.30714611]
[1724828036851,0.53280127,59328.0,59327.0,2.34831979]
[1724828037743,0.53280127,59328.0,59327.0,2.64363124]
[1724828038401,0.50637203,59328.0,59327.0,2.64363124]
[1724828038616,0.50637203,59328.0,59327.0,2.67530118]
[1724828038847,0.47266103,59328.0,59327.0,3.01820118]
[1724828039056,0.33781703,59328.0,59327.0,2.98653124]
[1724828040152,0.33781703,59328.0,59327.0,2.94535756]
[1724828040379,0.33781703,59328.0,59327.0,2.98652633]
[1724828040822,0.37855903,59328.0,59327.0,2.98652633]
[1724828041479,0.21000403,59328.0,59327.0,3.15487849]
[1724828041697,0.17629303,59328.0,59327.0,3.15487849]
[1724828041905,0.04145303,59328.0,59327.0,3.15487849]
[1724828042577,0.04145303,59328.0,59327.0,3.05999674]
[1724828042789,3e-08,59329.0,59328.0,2.18609683]
[1724828043005,3e-08,59329.0,59328.0,2.62439603]
[1724828043455,3e-08,59329.0,59328.0,2.96150403]
[1724828043664,3e-08,59329.0,59328.0,2.99309297]
[1724828044128,3e-08,59329.0,59328.0,2.94825634]
[1724828044350,3e-08,59329.0,59328.0,3.02108754]
[1724828045030,3e-08,59329.0,59328.0,3.00708754]
[1724828045441,3e-08,59329.0,59328.0,3.02108754]
[1724828045650,5e-07,59329.0,59328.0,3.00708754]
[1724828045864,5e-07,59329.0,59328.0,3.31639899]
[1724828046066,0.1403,59345.0,59344.0,1.179563]
[1724828046279,0.1403,59345.0,59344.0,1.202563]
[1724828046486,0.1403,59345.0,59344.0,1.21839579]
[1724828046695,0.1403,59345.0,59344.0,1.539581]
[1724828046904,0.16672451,59345.0,59344.0,1.539581]
[1724828047354,0.16672451,59345.0,59344.0,1.546581]
[1724828047588,0.16672451,59345.0,59344.0,1.557581]
[1724828048526,0.16672451,59345.0,59344.0,1.58189303]
[1724828050382,0.1403,59345.0,59344.0,1.58189303]
[1724828053596,0.16672289,59345.0,59344.0,1.58189303]
[1724828056616,0.02642289,59345.0,59344.0,1.58189303]
[1724828058207,0.02724089,59345.0,59344.0,1.59772473]
[1724828058435,0.000818,59345.0,59344.0,1.59772473]
[1724828060515,0.000818,59345.0,59344.0,1.59772469]
[1724828061623,0.000818,59345.0,59344.0,1.59992752]
[1724828061854,0.02724047,59345.0,59344.0,1.59992752]
[1724828062776,0.000818,59345.0,59344.0,1.93694552]
[1724828063002,0.000818,59345.0,59344.0,2.01276226]
[1724828063221,0.000818,59345.0,59344.0,2.28207614]
[1724828063481,0.000818,59345.0,59344.0,2.77527796]
[1724828063716,0.000818,59345.0,59344.0,2.79594128]
[1724828063993,0.000818,59345.0,59344.0,2.80994128]
[1724828064221,0.000818,59345.0,59344.0,2.82394128]
[1724828064459,0.000818,59345.0,59344.0,2.80994128]
[1724828064697,0.000818,59345.0,59344.0,2.82394128]
[1724828064929,0.000818,59345.0,59344.0,2.8099305]
[1724828065224,0.02723702,59345.0,59344.0,2.7959305]
[1724828065450,0.02723702,59345.0,59344.0,2.8239305]
[1724828065684,0.02723702,59345.0,59344.0,2.69771519]
[1724828065908,0.02723702,59345.0,59344.0,2.68371519]
[1724828066379,0.02723702,59345.0,59344.0,2.69771519]
[1724828066607,0.02723702,59345.0,59344.0,2.79860735]
[1724828066839,0.02723702,59345.0,59344.0,2.78460735]
[1724828067336,0.02723702,59345.0,59344.0,2.79860735]
[1724828067804,0.02723702,59345.0,59344.0,2.79857652]
[1724828068963,0.02723702,59345.0,59344.0,2.72576169]
[1724828069191,0.02723702,59345.0,59344.0,2.79857652]
[1724828070572,0.02723702,59345.0,59344.0,2.6976962]
[1724828070821,0.02723702,59345.0,59344.0,2.62488137]
[1724828071050,0.02723702,59345.0,59344.0,2.6976962]
[1724828072437,0.02723702,59345.0,59344.0,2.69769619]
[1724828073362,0.02723702,59345.0,59344.0,2.68369619]
[1724828074030,0.000639,59345.0,59344.0,2.68369619]
[1724828074488,0.000639,59345.0,59344.0,2.66969619]
[1724828074712,0.000639,59345.0,59344.0,2.68369619]
[1724828074981,0.000639,59345.0,59344.0,2.69773619]
[1724828076263,0.000639,59345.0,59344.0,2.78459102]
[1724828077368,0.000639,59345.0,59344.0,2.78461701]
[1724828077799,0.000639,59345.0,59344.0,2.77061701]
[1724828078253,0.000639,59345.0,59344.0,2.72580218]
[1724828078465,0.000639,59345.0,59344.0,2.78461701]
[1724828078681,0.000639,59345.0,59344.0,2.77061701]
[1724828078916,0.000639,59345.0,59344.0,2.78461701]
[1724828079130,0.000639,59345.0,59344.0,2.79861701]
[1724828079321,0.000639,59345.0,59344.0,2.6977362]
[1724828080318,0.000639,59345.0,59344.0,2.82383722]
[1724828082014,0.000639,59345.0,59344.0,2.75102239]
[1724828082222,0.000639,59345.0,59344.0,1.97864167]
[1724828082436,0.000639,59345.0,59344.0,2.34627646]
[1724828085743,0.000639,59345.0,59344.0,2.33044719]
[1724828085957,0.000639,59345.0,59344.0,2.34627646]
[1724828086169,0.000639,59345.0,59344.0,2.30512036]
[1724828086388,0.000639,59345.0,59344.0,2.34627646]
[1724828086614,0.02705823,59345.0,59344.0,2.34627646]
[1724828088824,0.37135823,59345.0,59344.0,2.08504419]
[1724828089074,0.344939,59345.0,59344.0,1.71107769]
[1724828089300,0.344939,59345.0,59344.0,1.77849551]
[1724828089510,0.344939,59345.0,59344.0,1.7504976]
[1724828089722,0.344939,59345.0,59344.0,1.69997101]
[1724828089943,0.344939,59345.0,59344.0,1.72797101]
[1724828090164,0.344939,59345.0,59344.0,1.71397101]
[1724828090388,0.344939,59345.0,59344.0,1.69997101]
[1724828090606,0.344939,59345.0,59344.0,1.72797101]
[1724828091706,0.344939,59345.0,59344.0,1.80375674]
[1724828092366,0.37135968,59345.0,59344.0,1.80375674]
[1724828093688,0.37135968,59345.0,59344.0,2.17777282]
[1724828094357,0.37135968,59345.0,59344.0,2.17867262]
[1724828094572,0.344939,59345.0,59344.0,2.17867262]
[1724828096426,0.37136032,59345.0,59344.0,2.17867262]
[1724828096845,0.02706032,59345.0,59344.0,2.17867262]
[1724828097945,0.02706032,59345.0,59344.0,2.1786726]
[1724828098402,0.000639,59345.0,59344.0,2.1786726]
[1724828098621,0.000639,59345.0,59344.0,2.10288687]
[1724828101950,0.000639,59345.0,59344.0,2.20393451]
[1724828102162,0.000639,59345.0,59344.0,2.10288687]
[1724828102373,0.000639,59345.0,59344.0,2.20399959]
[1724828105567,0.000639,59345.0,59344.0,2.20400946]
[1724828105797,0.0270597,59345.0,59344.0,2.20400946]
[1724828106714,0.0270597,59345.0,59344.0,2.10288233]
[1724828108136,0.0270597,59345.0,59344.0,2.46108233]
[1724828108357,0.0002517,59354.0,59353.0,1.63655362]
[1724828108572,0.0002517,59354.0,59353.0,1.7259485]
[1724828108795,0.0002517,59354.0,59353.0,1.67538348]
[1724828109485,0.3278517,59354.0,59353.0,1.67538348]
[1724828109757,0.3278517,59354.0,59353.0,1.67155362]
[1724828110716,0.3278517,59354.0,59353.0,1.68555362]
[1724828111598,0.35426997,59354.0,59353.0,1.71063156]
[1724828112309,0.3278517,59354.0,59353.0,1.71063156]
[1724828116245,0.3542699,59354.0,59353.0,1.71063156]
[1724828116460,0.3542699,59354.0,59353.0,1.72646177]
[1724828116883,0.3542699,59354.0,59353.0,1.77703436]
[1724828117498,0.3542699,59354.0,59353.0,1.72646177]
[1724828118200,0.3542699,59354.0,59353.0,2.1004247]
[1724828118616,0.3278517,59354.0,59353.0,2.1004247]
[1724828119739,0.3278517,59354.0,59353.0,2.17628025]
[1724828119995,0.3278517,59354.0,59353.0,2.1762793]
[1724828120426,0.3278517,59354.0,59353.0,2.17627894]
[1724828120644,0.3278517,59354.0,59353.0,2.17627919]
[1724828120854,0.3278517,59354.0,59353.0,2.17627856]
[1724828121066,0.3278517,59354.0,59353.0,2.17627923]
[1724828121518,0.3278517,59354.0,59353.0,2.10042375]
[1724828121720,0.3278517,59354.0,59353.0,2.17627884]
[1724828121929,0.35426992,59354.0,59353.0,2.17627911]
[1724828124888,0.35426992,59354.0,59353.0,2.17628232]
[1724828126387,0.20786992,59354.0,59353.0,2.17628232]
[1724828126853,0.20786992,59354.0,59353.0,2.16045306]
[1724828127056,0.20786992,59354.0,59353.0,2.17628232]
[1724828127504,0.02666992,59354.0,59353.0,2.17628232]
[1724828128604,0.0002517,59354.0,59353.0,2.17628232]
[1724828129855,0.0002517,59354.0,59353.0,2.1762822]
[1724828130484,0.0002517,59354.0,59353.0,2.16045294]
[1724828130696,0.0002517,59354.0,59353.0,2.17628219]
[1724828134720,0.0002517,59354.0,59353.0,2.17628008]
[1724828134943,0.02666963,59354.0,59353.0,2.17628008]
[1724828136218,0.02666963,59354.0,59353.0,2.10042685]
[1724828137494,0.02666963,59354.0,59353.0,2.10042679]
[1724828139565,0.02666963,59354.0,59353.0,2.10042548]
[1724828140617,0.02666963,59354.0,59353.0,2.20156966]
[1724828140824,0.02666963,59354.0,59353.0,2.18574047]
[1724828141038,0.02666963,59354.0,59353.0,2.20156957]
[1724828142315,0.02666963,59354.0,59353.0,2.20246827]
[1724828143556,0.37666963,59354.0,59353.0,2.20246827]
[1724828144397,0.37666963,59354.0,59353.0,2.1866549]
[1724828144600,0.37666963,59354.0,59353.0,2.202484]
[1724828144810,0.02666963,59354.0,59353.0,2.202484]
[1724828145655,0.02666963,59354.0,59353.0,2.10132186]
[1724828148392,0.02666963,59354.0,59353.0,2.22777454]
[1724828148619,0.02666963,59354.0,59353.0,2.10132186]
[1724828148844,0.02666963,59354.0,59353.0,2.2025116]
[1724828149339,0.02666963,59354.0,59353.0,1.72735936]
[1724828149574,0.02666963,59354.0,59353.0,2.10132428]
[1724828151134,0.02646685,59354.0,59353.0,2.10132428]
[1724828151573,0.02646685,59354.0,59353.0,2.10132438]
[1724828152436,0.02646685,59354.0,59353.0,2.22781168]
[1724828156550,0.02646685,59354.0,59353.0,2.20256265]
[1724828156763,0.02646685,59354.0,59353.0,2.10132438]
[1724828157030,0.02646685,59354.0,59353.0,2.20256831]
[1724828157456,0.02646685,59354.0,59353.0,2.10132438]
[1724828158131,0.02646685,59354.0,59353.0,2.22781168]
[1724828158351,0.02646685,59354.0,59353.0,2.10132438]
[1724828158559,0.02646685,59354.0,59353.0,2.20258068]
[1724828159208,0.02646685,59354.0,59353.0,2.22781168]
[1724828160885,0.02646685,59354.0,59353.0,2.21198248]
[1724828161108,0.02646685,59354.0,59353.0,2.71127768]
[1724828161331,4.892e-05,59354.0,59353.0,2.75776118]
[1724828161546,4.892e-05,59354.0,59353.0,2.77359005]
[1724828161758,4.892e-05,59354.0,59353.0,2.87910396]
[1724828162187,4.892e-05,59354.0,59353.0,2.86710396]
[1724828162397,4.892e-05,59354.0,59353.0,2.77359005]
[1724828163051,4.892e-05,59354.0,59353.0,2.75959005]
[1724828163874,0.000818,59358.0,59353.0,2.75959005]
[1724828163875,0.000818,59358.0,59357.0,1.51845083]
[1724828164085,0.000818,59358.0,59357.0,2.38494841]
[1724828164323,0.000818,59358.0,59357.0,2.72189241]
[1724828164789,0.000818,59358.0,59357.0,2.11984462]
[1724828164998,0.000818,59358.0,59357.0,2.20102816]
[1724828165433,0.000818,59358.0,59357.0,2.06324841]
[1724828165651,0.000818,59358.0,59357.0,2.07724841]
[1724828165652,0.02723272,59358.0,59357.0,2.07724841]
[1724828165883,0.02723272,59358.0,59357.0,2.06324841]
[1724828166101,0.02723272,59358.0,59357.0,2.04924841]
[1724828166314,0.02723272,59358.0,59357.0,2.07724841]
[1724828167221,7.2e-07,59358.0,59357.0,2.43284841]
[1724828167433,0.410818,59365.0,59364.0,1.71547083]
[1724828167646,0.410818,59365.0,59364.0,1.87230349]
[1724828167855,0.4145049,59365.0,59364.0,1.87230349]
[1724828168068,0.410818,59365.0,59364.0,1.87230349]
[1724828168291,0.4145049,59365.0,59364.0,1.87230349]
[1724828168755,0.4145049,59365.0,59364.0,1.88630349]
[1724828168986,0.410818,59365.0,59364.0,1.90030349]
[1724828169430,0.410818,59365.0,59364.0,1.70310349]
[1724828169644,0.4145049,59365.0,59364.0,1.75366335]
[1724828169871,0.4145049,59365.0,59364.0,1.77876653]
[1724828170081,0.410818,59365.0,59364.0,2.37517537]
[1724828170297,0.410818,59365.0,59364.0,2.00126878]
[1724828170650,0.410818,59365.0,59364.0,1.92540667]
[1724828170878,0.410818,59365.0,59364.0,1.92540405]
[1724828171103,0.561018,59365.0,59364.0,1.61020026]
[1724828171306,0.5647049,59365.0,59364.0,1.72820405]
[1724828171716,0.59111832,59365.0,59364.0,1.72820405]
[1724828173461,0.59111832,59365.0,59364.0,1.7123778]
[1724828173655,0.59111832,59365.0,59364.0,1.72820391]
[1724828174086,0.44091832,59365.0,59364.0,1.72820391]
[1724828174302,0.44091832,59365.0,59364.0,1.79573991]
[1724828174522,0.43991832,59365.0,59364.0,1.79573991]
[1724828180128,0.43991832,59365.0,59364.0,1.7799138]
[1724828180330,0.43991832,59365.0,59364.0,2.31524391]
[1724828180452,0.43991832,59365.0,59364.0,2.2994178]
[1724828180647,0.43623142,59365.0,59364.0,2.315243]
[1724828180861,0.409818,59365.0,59364.0,2.315243]
[1724828182885,0.409818,59365.0,59364.0,2.6890972]
[1724828183305,0.409818,59365.0,59364.0,2.81532251]
[1724828183531,0.409818,59365.0,59364.0,2.79949731]
[1724828183969,0.409818,59365.0,59364.0,2.81532182]
[1724828185471,0.409818,59365.0,59364.0,2.68909651]
[1724828185905,0.409818,59365.0,59364.0,2.57109272]
[1724828186142,0.756318,59365.0,59364.0,1.72821345]
[1724828186414,0.756318,59365.0,59364.0,1.29857062]
[1724828186625,0.756318,59365.0,59364.0,0.196452]
[1724828186626,0.76009519,59365.0,59364.0,0.196452]
[1724828186854,0.756318,59365.0,59364.0,0.196452]
[1724828187064,0.76009519,59365.0,59364.0,0.533356]
[1724828187714,0.76009519,59365.0,59364.0,0.505356]
[1724828187938,0.78651085,59365.0,59364.0,0.505356]
[1724828188167,0.78651085,59365.0,59364.0,0.525356]
[1724828188399,0.78651085,59365.0,59364.0,0.512356]
[1724828188613,0.78651085,59365.0,59364.0,0.519356]
[1724828189089,0.78651085,59365.0,59364.0,0.175452]
[1724828189090,0.78930802,59365.0,59364.0,0.175452]
[1724828189516,0.78930802,59365.0,59364.0,0.177452]
[1724828189983,0.78930802,59365.0,59364.0,0.514356]
[1724828190219,0.78930802,59365.0,59364.0,0.177452]
[1724828190429,0.78930802,59365.0,59364.0,0.1783518]
[1724828191311,0.78930802,59365.0,59364.0,0.5152558]
[1724828195516,0.78651085,59365.0,59364.0,0.8521598]
[1724828197020,0.90731181,59365.0,59364.0,0.1783518]
[1724828197237,0.90731181,59365.0,59364.0,0.5152558]
[1724828197450,0.90731181,59365.0,59364.0,0.1783518]
[1724828198144,0.90731181,59365.0,59364.0,0.5152558]
[1724828199643,1.41266181,59365.0,59364.0,0.5152558]
[1724828202240,1.41266181,59365.0,59364.0,0.1783518]
[1724828203674,1.41245907,59365.0,59364.0,0.1783518]
[1724828205871,1.41245907,59365.0,59364.0,0.5152558]
[1724828206083,1.41245907,59365.0,59364.0,0.1783518]
[1724828206311,1.41245907,59365.0,59364.0,0.5152558]
[1724828207673,1.41245907,59365.0,59364.0,0.1783518]
[1724828208080,1.91780607,59365.0,59364.0,0.0098998]
[1724828208337,1.58090807,59365.0,59364.0,0.0098998]
[1724828208528,1.46290428,59365.0,59364.0,0.0098998]
[1724828208748,1.91780607,59365.0,59364.0,0.0098998]
[1724828208948,1.58090807,59365.0,59364.0,0.0098998]
[1724828209826,1.91780607,59365.0,59364.0,0.0098998]
[1724828210484,1.29445528,59365.0,59364.0,0.0098998]
[1724828211693,1.46290428,59365.0,59364.0,0.0098998]
[1724828213266,1.29445528,59365.0,59364.0,0.0098998]
[1724828213681,1.26803962,59365.0,59364.0,0.0098998]
[1724828215240,1.29445583,59365.0,59364.0,0.0098998]
[1724828216071,1.29445583,59365.0,59364.0,0.1783518]
[1724828219940,0.94515866,59365.0,59364.0,0.8521598]
[1724828220161,0.94515866,59365.0,59364.0,1.1890638]
[1724828220594,0.91874245,59365.0,59364.0,1.1890638]
[1724828224021,0.91874245,59365.0,59364.0,0.8521598]
[1724828235939,1.22494245,59365.0,59364.0,0.1783518]
[1724828236170,1.22773962,59365.0,59364.0,0.5152558]
[1724828239076,1.22773962,59365.0,59364.0,0.0098998]
[1724828239494,1.22273962,59365.0,59364.0,0.5152558]
[1724828239942,1.22273962,59365.0,59364.0,0.1783518]
[1724828241149,1.39118862,59365.0,59364.0,0.0098998]
[1724828241350,2.09118862,59365.0,59364.0,0.0098998]
[1724828243179,1.39118862,59365.0,59364.0,0.0098998]
[1724828243374,1.72808662,59365.0,59364.0,0.0098998]
[1724828243944,1.84609265,59365.0,59364.0,0.0098998]
[1724828245001,2.18299065,59365.0,59364.0,0.0098998]
[1724828245201,2.88299065,59365.0,59364.0,0.0098998]
[1724828246412,3.21988865,59365.0,59364.0,0.0098998]
[1724828246821,3.55678665,59365.0,59364.0,0.0098998]
[1724828247290,3.56178665,59365.0,59364.0,0.0098998]
[1724828247777,1.6016662,59354.0,59353.0,0.0008987]
[1724828248018,2.70414382,59354.0,59353.0,0.0008987]
[1724828248221,2.47945772,59354.0,59353.0,0.0008987]
[1724828248444,2.08767175,59354.0,59353.0,0.0008987]
[1724828248648,2.10567778,59354.0,59353.0,0.0008987]